bitfinex-derivatives/quotes_BTCF0:USTF0_20260221
["timestamp","ask_amount","ask_price","bid_price","bid_amount"]
[1771640526845,0.67269464,68075.0,68071.0,0.014694]
[1771640527046,0.67269464,68075.0,68072.0,0.014694]
[1771640527448,0.1278538,68074.0,68072.0,0.014694]
[1771640527847,0.1278538,68073.0,68072.0,0.014694]
[1771640528047,0.67269464,68075.0,68072.0,0.014694]
[1771640528746,0.46752,68090.0,68087.0,0.014691]
[1771640528953,0.452828,68090.0,68087.0,0.00780843]
[1771640529150,0.467518,68090.0,68086.0,0.014691]
[1771640529453,0.014691,68089.0,68084.0,0.014692]
[1771640529654,0.014691,68089.0,68085.0,0.014691]
[1771640530149,0.1278538,68087.0,68085.0,0.014691]
[1771640530343,0.467518,68090.0,68085.0,0.014691]
[1771640530542,0.1278538,68087.0,68085.0,0.014691]
[1771640530753,0.1278538,68087.0,68084.0,0.014692]
[1771640531144,0.1278538,68086.0,68084.0,0.014692]
[1771640531341,0.467518,68090.0,68084.0,0.014692]
[1771640531547,0.1278538,68087.0,68084.0,0.014692]
[1771640531947,0.467518,68090.0,68084.0,0.014692]
[1771640532148,0.1278538,68087.0,68084.0,0.014692]
[1771640532342,0.1278538,68087.0,68083.0,0.014692]
[1771640532558,0.014692,68082.0,68067.0,0.014695]
[1771640532746,0.1278528,68082.0,68073.0,0.014694]
[1771640532954,0.014692,68082.0,68075.0,0.014694]
[1771640533156,0.1131608,68078.0,68075.0,0.014694]
[1771640533358,0.014693,68080.0,68075.0,0.014694]
[1771640533855,0.1131608,68076.0,68075.0,0.014694]
[1771640536963,0.029384,68082.0,68078.0,0.014693]
[1771640537147,0.014692,68082.0,68078.0,0.029386]
[1771640537553,0.014692,68082.0,68078.0,0.014693]
[1771640538462,0.01469,68092.0,68066.0,0.16107649]
[1771640538754,0.01469,68094.0,68082.0,0.014692]
[1771640538948,0.16274372,68109.0,68087.0,0.014691]
[1771640539148,0.014688,68102.0,68094.0,0.029378]
[1771640539351,0.014688,68101.0,68094.0,0.014689]
[1771640539557,0.014688,68101.0,68094.0,0.029378]
[1771640539863,0.014688,68101.0,68095.0,0.014689]
[1771640540062,0.014688,68102.0,68095.0,0.014689]
[1771640541060,0.014688,68102.0,68096.0,0.00092]
[1771640541253,0.014688,68102.0,68095.0,0.014689]
[1771640542366,0.014688,68102.0,68094.0,0.014689]
[1771640543557,0.015688,68102.0,68094.0,0.014689]
[1771640543758,0.015688,68102.0,68094.0,0.029378]
[1771640543959,0.014688,68102.0,68094.0,0.014689]
[1771640545450,0.014688,68101.0,68093.0,0.01469]
[1771640545849,0.16274372,68108.0,68088.0,0.014691]
[1771640546055,0.014689,68097.0,68090.0,0.01469]
[1771640546263,0.014689,68098.0,68089.0,0.014691]
[1771640546464,0.16274372,68100.0,68078.0,0.17576949]
[1771640546764,0.014688,68101.0,68094.0,0.014689]
[1771640546959,0.014687,68107.0,68098.0,0.014688]
[1771640547263,0.014687,68105.0,68098.0,0.014688]
[1771640547559,0.014687,68105.0,68098.0,0.014689]
[1771640548759,0.014687,68105.0,68097.0,0.014689]
[1771640548962,0.014687,68105.0,68098.0,0.014689]
[1771640550160,0.014687,68105.0,68097.0,0.014689]
[1771640550662,0.014687,68105.0,68098.0,0.014689]
[1771640551366,0.014687,68107.0,68099.0,0.014688]
[1771640553169,0.0011308,68121.0,68099.0,0.16107649]
[1771640553470,0.014685,68115.0,68106.0,0.014687]
[1771640553664,0.014685,68114.0,68106.0,0.014687]
[1771640553863,0.014685,68115.0,68107.0,0.014687]
[1771640554173,0.014684,68118.0,68108.0,0.014686]
[1771640554466,0.014684,68118.0,68109.0,0.014686]
[1771640554467,0.014685,68116.0,68109.0,0.014686]
[1771640554673,0.014685,68116.0,68107.0,0.014687]
[1771640554674,0.014685,68116.0,68108.0,0.014686]
[1771640554877,0.014685,68115.0,68107.0,0.014687]
[1771640555259,0.014685,68114.0,68106.0,0.014687]
[1771640555464,0.014685,68113.0,68106.0,0.014687]
[1771640555874,0.014685,68113.0,68103.0,0.014687]
[1771640555875,0.014685,68113.0,68105.0,0.014687]
[1771640556076,0.014685,68114.0,68106.0,0.014687]
[1771640556372,0.014685,68113.0,68106.0,0.014687]
[1771640556670,0.014685,68113.0,68105.0,0.014687]
[1771640556864,0.014686,68112.0,68105.0,0.014687]
[1771640557864,0.014686,68112.0,68104.0,0.014687]
[1771640561179,0.014686,68112.0,68105.0,0.014687]
[1771640561675,0.014686,68112.0,68104.0,0.014687]
[1771640561874,0.014685,68113.0,68105.0,0.014687]
[1771640562484,0.029371,68113.0,68105.0,0.014687]
[1771640562672,0.014685,68113.0,68105.0,0.014687]
[1771640564069,0.014685,68113.0,68091.0,0.50176124]
[1771640564275,0.014686,68109.0,68101.0,0.014688]
[1771640564977,0.014686,68109.0,68102.0,0.014688]
[1771640566377,0.014685,68113.0,68102.0,0.014688]
[1771640566679,0.014686,68111.0,68103.0,0.014687]
[1771640567080,0.014686,68110.0,68103.0,0.014687]
[1771640568981,0.014686,68110.0,68101.0,0.014688]
[1771640568982,0.014686,68110.0,68102.0,0.014688]
[1771640569181,0.014686,68109.0,68102.0,0.014688]
[1771640569776,0.014686,68108.0,68098.0,0.014688]
[1771640569980,0.014687,68107.0,68097.0,0.014689]
[1771640570277,0.014687,68105.0,68098.0,0.014689]
[1771640570577,0.014687,68105.0,68099.0,0.014688]
[1771640570970,0.014687,68105.0,68098.0,0.029377]
[1771640570971,0.014687,68104.0,68098.0,0.029377]
[1771640571577,0.014687,68105.0,68098.0,0.029377]
[1771640572276,0.014687,68104.0,68099.0,0.014688]
[1771640576078,0.014688,68103.0,68098.0,0.014688]
[1771640576282,0.014687,68104.0,68099.0,0.014688]
[1771640577582,0.014687,68104.0,68100.0,0.014688]
[1771640579786,0.014687,68107.0,68102.0,0.014688]
[1771640581078,0.014687,68107.0,68101.0,0.014688]
[1771640581276,0.029374,68107.0,68100.0,0.014688]
[1771640581691,0.014687,68106.0,68100.0,0.014688]
[1771640582288,0.014687,68105.0,68099.0,0.014688]
[1771640583090,0.014689,68099.0,68095.0,0.17473191]
[1771640583277,0.014689,68099.0,68094.0,0.17473191]
[1771640583478,0.014689,68095.0,68086.0,0.014691]
[1771640583684,0.014689,68095.0,68089.0,0.01469]
[1771640583887,0.014689,68094.0,68089.0,0.01469]
[1771640584081,0.01469,68093.0,68087.0,0.014691]
[1771640584287,0.01469,68092.0,68087.0,0.014691]
[1771640584488,0.01469,68092.0,68088.0,0.014691]
[1771640585285,0.01469,68090.0,68086.0,0.029382]
[1771640585484,0.01469,68091.0,68087.0,0.014691]
[1771640585690,0.01469,68092.0,68088.0,0.014691]
[1771640585989,0.01469,68091.0,68088.0,0.014691]
[1771640586204,0.01469,68091.0,68087.0,0.014691]
[1771640586394,0.01469,68091.0,68084.0,0.014692]
[1771640586595,0.014691,68089.0,68085.0,0.014691]
[1771640586799,0.014691,68089.0,68082.0,0.014692]
[1771640587291,0.01469,68090.0,68086.0,0.014691]
[1771640587992,0.01469,68090.0,68087.0,0.014691]
[1771640589596,0.01469,68090.0,68086.0,0.014691]
[1771640591185,0.014691,68089.0,68075.0,0.21063785]
[1771640591498,0.014691,68086.0,68083.0,0.014692]
[1771640591795,0.014691,68086.0,68082.0,0.014692]
[1771640591983,0.014691,68086.0,68082.0,0.029384]
[1771640592181,0.014691,68086.0,68083.0,0.014692]
[1771640592386,0.014691,68086.0,68081.0,0.014692]
[1771640592585,0.014691,68086.0,68082.0,0.014692]
[1771640592795,0.014691,68086.0,68079.0,0.014693]
[1771640592796,0.014691,68088.0,68076.0,0.014693]
[1771640593096,0.014691,68088.0,68071.0,0.014694]
[1771640593097,0.014692,68082.0,68078.0,0.029386]
[1771640593299,0.014692,68082.0,68079.0,0.014693]
[1771640593595,0.014692,68083.0,68079.0,0.014693]
[1771640593797,0.014692,68082.0,68073.0,0.014694]
[1771640593998,0.014692,68082.0,68071.0,0.014694]
[1771640593999,0.014692,68083.0,68079.0,0.014693]
[1771640595482,0.014692,68082.0,68078.0,0.014693]
[1771640595688,0.014692,68082.0,68078.0,0.029386]
[1771640595889,0.014692,68081.0,68076.0,0.014693]
[1771640596084,0.014692,68081.0,68077.0,0.014693]
[1771640596398,0.014692,68082.0,68078.0,0.014693]
[1771640596784,0.014692,68083.0,68078.0,0.014693]
[1771640596986,0.014692,68083.0,68079.0,0.014693]
[1771640599097,0.014692,68084.0,68079.0,0.014693]
[1771640599297,0.014691,68085.0,68080.0,0.014693]
[1771640603091,0.014691,68085.0,68079.0,0.014693]
[1771640603898,0.014691,68086.0,68079.0,0.014693]
[1771640604097,0.014691,68086.0,68080.0,0.014692]
[1771640604297,0.014691,68085.0,68080.0,0.014692]
[1771640604898,0.014691,68085.0,68076.0,0.014693]
[1771640605301,0.014691,68085.0,68079.0,0.014693]
[1771640605495,0.014691,68085.0,68079.0,0.029386]
[1771640606605,0.014691,68085.0,68079.0,0.014693]
[1771640611005,0.1795494,68092.0,68080.0,0.014692]
[1771640611006,0.014691,68087.0,68080.0,0.014692]
[1771640611215,0.014691,68089.0,68083.0,0.014692]
[1771640612206,0.01469,68090.0,68083.0,0.014692]
[1771640612207,0.029381,68090.0,68083.0,0.014692]
[1771640614610,0.014691,68089.0,68083.0,0.014692]
[1771640616011,0.014691,68089.0,68082.0,0.014692]
[1771640616808,0.014691,68088.0,68082.0,0.014692]
[1771640617314,0.014691,68088.0,68081.0,0.029384]
[1771640618116,0.014691,68089.0,68082.0,0.014692]
[1771640621520,0.029382,68089.0,68082.0,0.014692]
[1771640622020,0.014691,68088.0,68082.0,0.014692]
[1771640628328,0.014689,68096.0,68082.0,0.014692]
[1771640629029,0.014691,68089.0,68082.0,0.014692]
[1771640629231,0.029382,68089.0,68082.0,0.014692]
[1771640629526,0.014691,68088.0,68081.0,0.014692]
[1771640633321,0.014689,68096.0,68076.0,0.014693]
[1771640633525,0.014692,68083.0,68076.0,0.029386]
[1771640633732,0.014692,68083.0,68076.0,0.014693]
[1771640634229,0.014692,68082.0,68076.0,0.014693]
[1771640634527,0.014692,68082.0,68076.0,0.015693]
[1771640635024,0.029383,68085.0,68079.0,0.014693]
[1771640635237,0.014691,68085.0,68079.0,0.014693]
[1771640635834,0.014691,68086.0,68080.0,0.014692]
[1771640636131,0.014691,68085.0,68079.0,0.014693]
[1771640636338,0.014691,68086.0,68080.0,0.014692]
[1771640637037,0.01469,68094.0,68085.0,0.014691]
[1771640637331,0.01469,68090.0,68084.0,0.014691]
[1771640637722,0.01469,68090.0,68082.0,0.014692]
[1771640637723,0.01469,68090.0,68083.0,0.014692]
[1771640638025,0.014691,68089.0,68083.0,0.014692]
[1771640641128,0.014691,68088.0,68079.0,0.014693]
[1771640641433,0.014691,68086.0,68078.0,0.014693]
[1771640642025,0.014691,68086.0,68079.0,0.014693]
[1771640642333,0.014691,68085.0,68079.0,0.014693]
[1771640644835,0.014692,68084.0,68079.0,0.014693]
[1771640652136,0.014692,68084.0,68077.0,0.014693]
[1771640652336,0.014692,68084.0,68076.0,0.014693]
[1771640652639,0.014692,68084.0,68079.0,0.014693]
[1771640653841,0.014692,68083.0,68078.0,0.014693]
[1771640655641,0.014692,68082.0,68075.0,0.014694]
[1771640655940,0.014692,68082.0,68078.0,0.014693]
[1771640656642,0.014692,68082.0,68078.0,0.029386]
[1771640657338,0.014692,68084.0,68080.0,0.014692]
[1771640657640,0.014692,68083.0,68079.0,0.014693]
[1771640660343,0.014692,68082.0,68077.0,0.014693]
[1771640660545,0.014692,68082.0,68078.0,0.014693]
[1771640660739,0.014692,68082.0,68077.0,0.014693]
[1771640661037,0.014692,68082.0,68078.0,0.014693]
[1771640663247,0.2077858,68096.0,68074.0,0.014694]
[1771640663248,0.01469,68091.0,68079.0,0.014693]
[1771640663446,0.014691,68088.0,68083.0,0.014692]
[1771640665046,0.014691,68089.0,68083.0,0.014692]
[1771640666944,0.19790735,68098.0,68077.0,0.014693]
[1771640667142,0.014691,68087.0,68081.0,0.014692]
[1771640668950,0.014691,68088.0,68081.0,0.014692]
[1771640669746,0.014691,68087.0,68081.0,0.014692]
[1771640673057,0.014691,68087.0,68081.0,0.015652]
[1771640673250,0.014691,68087.0,68081.0,0.014692]
[1771640674056,0.014691,68086.0,68080.0,0.029384]
[1771640674248,0.014691,68086.0,68080.0,0.014692]
[1771640675249,0.014691,68085.0,68079.0,0.014693]
[1771640675847,0.014691,68085.0,68079.0,0.029386]
[1771640678055,0.014692,68084.0,68078.0,0.014693]
[1771640678251,0.014691,68085.0,68079.0,0.029386]
[1771640678756,0.014691,68085.0,68079.0,0.014693]
[1771640679248,0.014692,68084.0,68079.0,0.014693]
[1771640681453,0.014692,68084.0,68079.0,0.029386]
[1771640681962,0.014692,68084.0,68080.0,0.014692]
[1771640683956,0.014692,68084.0,68079.0,0.014693]
[1771640685059,0.014692,68081.0,68076.0,0.014693]
[1771640685252,0.014692,68081.0,68073.0,0.014694]
[1771640685555,0.014692,68082.0,68077.0,0.014693]
[1771640685762,0.014692,68082.0,68077.0,0.029386]
[1771640685961,0.029384,68082.0,68077.0,0.014693]
[1771640686353,0.014692,68081.0,68077.0,0.014693]
[1771640687961,0.014692,68081.0,68077.0,0.029386]
[1771640689063,0.014692,68083.0,68079.0,0.014693]
[1771640689963,0.014692,68083.0,68078.0,0.014693]
[1771640691765,0.014692,68084.0,68079.0,0.014693]
[1771640692662,0.01469,68090.0,68079.0,0.029386]
[1771640692966,0.014691,68086.0,68080.0,0.014692]
[1771640694168,0.01469,68091.0,68073.0,0.17780743]
[1771640694468,0.01469,68090.0,68084.0,0.014691]
[1771640696064,0.01469,68090.0,68083.0,0.014692]
[1771640696271,0.014691,68089.0,68083.0,0.014692]
[1771640696573,0.014691,68088.0,68081.0,0.014692]
[1771640697065,0.029382,68088.0,68082.0,0.00088]
[1771640697370,0.014691,68088.0,68082.0,0.014692]
[1771640700071,0.014691,68088.0,68082.0,0.015572]
[1771640700276,0.014691,68088.0,68082.0,0.014692]
[1771640700872,0.014689,68096.0,68078.0,0.014693]
[1771640701077,0.014692,68085.0,68078.0,0.014693]
[1771640701776,0.014692,68084.0,68078.0,0.014693]
[1771640701972,0.014692,68085.0,68078.0,0.014693]
[1771640702479,0.014692,68084.0,68078.0,0.014693]
[1771640702679,0.014692,68083.0,68077.0,0.014693]
[1771640703180,0.014692,68082.0,68076.0,0.014693]
[1771640704476,0.014692,68081.0,68076.0,0.014693]
[1771640705975,0.014692,68082.0,68077.0,0.014693]
[1771640706302,0.17969067,68090.0,68078.0,0.014693]
[1771640706471,0.37220804,68100.0,68084.0,0.014691]
[1771640706779,0.014691,68089.0,68085.0,0.014691]
[1771640706964,0.01469,68090.0,68085.0,0.014691]
[1771640707363,0.014688,68099.0,68086.0,0.014691]
[1771640707577,0.014689,68097.0,68084.0,0.014692]
[1771640707777,0.01469,68093.0,68088.0,0.014691]
[1771640708081,0.014689,68094.0,68088.0,0.014691]
[1771640708267,0.01469,68093.0,68087.0,0.014691]
[1771640709278,0.01469,68094.0,68087.0,0.014691]
[1771640710474,0.014689,68095.0,68089.0,0.01469]
[1771640711170,0.014689,68097.0,68090.0,0.01469]
[1771640712273,0.029378,68097.0,68090.0,0.01469]
[1771640712483,0.014689,68096.0,68090.0,0.01469]
[1771640713181,0.014689,68097.0,68090.0,0.01469]
[1771640713676,0.014688,68100.0,68090.0,0.01469]
[1771640713884,0.014688,68099.0,68092.0,0.01469]
[1771640714275,0.014689,68098.0,68092.0,0.01469]
[1771640717486,0.029378,68098.0,68092.0,0.01469]
[1771640717994,0.014689,68097.0,68092.0,0.01469]
[1771640719083,0.014689,68098.0,68092.0,0.01469]
[1771640721480,0.014689,68098.0,68093.0,0.01469]
[1771640724086,0.014689,68099.0,68093.0,0.01469]
[1771640727081,0.014689,68099.0,68093.0,0.01557]
[1771640727281,0.014689,68099.0,68093.0,0.01469]
[1771640730089,0.014689,68099.0,68093.0,0.01557]
[1771640730282,0.014689,68099.0,68093.0,0.01469]
[1771640735593,0.014689,68099.0,68093.0,0.02938]
[1771640737093,0.014689,68098.0,68092.0,0.01469]
[1771640739289,0.014689,68099.0,68093.0,0.01469]
[1771640739592,0.014688,68100.0,68094.0,0.014689]
[1771640739989,0.014688,68101.0,68095.0,0.014689]
[1771640740493,0.029376,68101.0,68094.0,0.014689]
[1771640741894,0.014688,68100.0,68094.0,0.014689]
[1771640745593,0.014688,68099.0,68093.0,0.01469]
[1771640748300,0.014688,68099.0,68093.0,0.02938]
[1771640749199,0.014688,68100.0,68094.0,0.014689]
[1771640750198,0.029376,68100.0,68094.0,0.014689]
[1771640750393,0.014688,68100.0,68094.0,0.014689]
[1771640751097,0.014688,68100.0,68093.0,0.01469]
[1771640751600,0.014688,68100.0,68094.0,0.014689]
[1771640757306,0.014689,68098.0,68092.0,0.01469]
[1771640757805,0.014688,68099.0,68093.0,0.01469]
[1771640758006,0.029377,68099.0,68093.0,0.01469]
[1771640758202,0.014687,68107.0,68086.0,0.014691]
[1771640758203,0.014688,68101.0,68095.0,0.014689]
[1771640758400,0.014688,68100.0,68094.0,0.014689]
[1771640761605,0.014688,68101.0,68094.0,0.014689]
[1771640761807,0.014688,68101.0,68095.0,0.014689]
[1771640762308,0.014688,68100.0,68094.0,0.014689]
[1771640765611,0.014688,68099.0,68093.0,0.01469]
[1771640766105,0.014688,68099.0,68092.0,0.01469]
[1771640766504,0.014688,68099.0,68093.0,0.01469]
[1771640767502,0.014688,68100.0,68094.0,0.014689]
[1771640767902,0.014688,68099.0,68093.0,0.01469]
[1771640772313,0.014688,68099.0,68085.0,0.15982501]
[1771640772314,0.17132947,68117.0,68102.0,0.014688]
[1771640772508,0.014686,68109.0,68103.0,0.014687]
[1771640772812,0.014686,68108.0,68102.0,0.014688]
[1771640774005,0.014686,68109.0,68102.0,0.014688]
[1771640774612,0.014686,68109.0,68103.0,0.014687]
[1771640774806,0.014686,68110.0,68103.0,0.029374]
[1771640775010,0.014686,68112.0,68104.0,0.014687]
[1771640775208,0.014686,68111.0,68105.0,0.014687]
[1771640776315,0.014686,68112.0,68106.0,0.014687]
[1771640776910,0.014686,68111.0,68105.0,0.00786503]
[1771640777323,0.014686,68110.0,68104.0,0.014687]
[1771640777709,0.014686,68110.0,68104.0,0.00784386]
[1771640778115,0.015686,68111.0,68105.0,0.014687]
[1771640778720,0.014686,68111.0,68104.0,0.00784386]
[1771640778914,0.029372,68111.0,68105.0,0.0078456]
[1771640779118,0.029372,68111.0,68104.0,0.014687]
[1771640779313,0.014686,68111.0,68104.0,0.014687]
[1771640779506,0.015686,68111.0,68104.0,0.014687]
[1771640781018,0.014686,68111.0,68104.0,0.014687]
[1771640781328,0.014686,68111.0,68104.0,0.029374]
[1771640781715,0.014686,68111.0,68105.0,0.014687]
[1771640782016,0.014684,68122.0,68101.0,0.15338505]
[1771640782318,0.014685,68117.0,68110.0,0.00735364]
[1771640783009,0.014685,68117.0,68111.0,0.014686]
[1771640783212,0.014684,68118.0,68111.0,0.014686]
[1771640783413,0.014684,68118.0,68111.0,0.00740067]
[1771640784619,0.014684,68118.0,68111.0,0.014686]
[1771640784823,0.015684,68118.0,68111.0,0.00740608]
[1771640785025,0.0011308,68121.0,68111.0,0.014686]
[1771640785213,0.029368,68118.0,68111.0,0.014686]
[1771640785413,0.0011308,68121.0,68103.0,0.014688]
[1771640785414,0.0158148,68121.0,68107.0,0.014687]
[1771640785613,0.014684,68120.0,68114.0,0.014685]
[1771640786720,0.014684,68120.0,68113.0,0.014685]
[1771640787021,0.001,68118.0,68113.0,0.014685]
[1771640787721,0.015684,68120.0,68113.0,0.014685]
[1771640788121,0.030368,68120.0,68113.0,0.014685]
[1771640788321,0.001,68118.0,68117.0,0.014685]
[1771640788623,0.001,68118.0,68109.0,0.014686]
[1771640788624,0.001,68118.0,68113.0,0.014685]
[1771640788825,0.014684,68120.0,68113.0,0.014685]
[1771640789022,0.015684,68120.0,68113.0,0.014685]
[1771640789923,0.001,68120.0,68115.0,0.014685]
[1771640790117,0.001,68120.0,68114.0,0.014685]
[1771640790918,0.0158148,68121.0,68114.0,0.014685]
[1771640791116,0.001,68118.0,68114.0,0.014685]
[1771640791316,0.001,68118.0,68113.0,0.014685]
[1771640791720,0.014684,68120.0,68113.0,0.014685]
[1771640792929,0.0158148,68121.0,68114.0,0.014685]
[1771640795431,0.014684,68120.0,68114.0,0.014685]
[1771640796528,0.014684,68118.0,68111.0,0.014686]
[1771640797526,0.029368,68118.0,68111.0,0.014686]
[1771640797718,0.014685,68117.0,68111.0,0.014686]
[1771640801035,0.014685,68117.0,68110.0,0.014686]
[1771640801939,0.014686,68111.0,68096.0,0.135789]
[1771640802128,0.014686,68112.0,68103.0,0.014687]
[1771640802328,0.029372,68112.0,68105.0,0.014687]
[1771640802733,0.014686,68111.0,68104.0,0.014687]
[1771640803031,0.014686,68110.0,68100.0,0.014688]
[1771640803230,0.014686,68110.0,68104.0,0.014687]
[1771640803426,0.014685,68116.0,68103.0,0.014687]
[1771640803835,0.014685,68113.0,68106.0,0.014687]
[1771640814848,0.014686,68111.0,68104.0,0.014687]
[1771640815851,0.014687,68108.0,68101.0,0.014688]
[1771640816653,0.014687,68107.0,68101.0,0.014688]
[1771640817057,0.014687,68107.0,68101.0,0.015488]
[1771640817252,0.014687,68107.0,68101.0,0.014688]
[1771640817557,0.014687,68106.0,68101.0,0.014688]
[1771640818057,0.014687,68107.0,68101.0,0.014688]
[1771640818257,0.029374,68107.0,68101.0,0.014688]
[1771640818457,0.014687,68107.0,68101.0,0.014688]
[1771640818653,0.014687,68107.0,68102.0,0.014688]
[1771640820458,0.014687,68104.0,68099.0,0.014688]
[1771640820849,0.16024503,68117.0,68095.0,0.014689]
[1771640820850,0.014686,68110.0,68105.0,0.014687]
[1771640821458,0.014686,68112.0,68100.0,0.17955288]
[1771640821959,0.014685,68113.0,68107.0,0.014687]
[1771640823060,0.014685,68113.0,68107.0,0.015567]
[1771640823246,0.014685,68114.0,68107.0,0.014687]
[1771640823447,0.0158148,68121.0,68113.0,0.014685]
[1771640823651,0.014684,68118.0,68111.0,0.014686]
[1771640824059,0.014685,68117.0,68111.0,0.014686]
[1771640824358,0.014684,68119.0,68112.0,0.014686]
[1771640825157,0.014684,68118.0,68112.0,0.014686]
[1771640826760,0.014684,68118.0,68110.0,0.014686]
[1771640826961,0.014685,68117.0,68110.0,0.014686]
[1771640827259,0.014685,68115.0,68108.0,0.014686]
[1771640827461,0.014685,68115.0,68109.0,0.014686]
[1771640827961,0.014685,68115.0,68102.0,0.014688]
[1771640827962,0.014686,68111.0,68102.0,0.014688]
[1771640828161,0.014686,68112.0,68105.0,0.014687]
[1771640829064,0.014686,68112.0,68106.0,0.00088]
[1771640829263,0.014686,68112.0,68105.0,0.014687]
[1771640831965,0.014685,68113.0,68107.0,0.014687]
[1771640834469,0.014685,68113.0,68106.0,0.014687]
[1771640843471,0.014686,68112.0,68105.0,0.014687]
[1771640846670,0.014686,68112.0,68106.0,0.014687]
[1771640847869,0.014685,68114.0,68106.0,0.014687]
[1771640847870,0.014685,68113.0,68106.0,0.014687]
[1771640848071,0.014685,68114.0,68107.0,0.014687]
[1771640850265,0.02937,68114.0,68107.0,0.014687]
[1771640851271,0.014685,68113.0,68107.0,0.014687]
[1771640851472,0.014685,68115.0,68107.0,0.014687]
[1771640851667,0.014684,68120.0,68113.0,0.014685]
[1771640851867,0.014685,68118.0,68112.0,0.014686]
[1771640852671,0.014685,68118.0,68111.0,0.014686]
[1771640852871,0.014685,68117.0,68111.0,0.014686]
[1771640853067,0.014686,68113.0,68105.0,0.014687]
[1771640853273,0.014686,68113.0,68106.0,0.014687]
[1771640853572,0.014686,68112.0,68106.0,0.014687]
[1771640853770,0.014686,68112.0,68105.0,0.014687]
[1771640854169,0.43903675,68120.0,68098.0,0.014689]
[1771640854377,0.014686,68110.0,68103.0,0.014687]
[1771640854578,0.014686,68111.0,68104.0,0.014687]
[1771640856677,0.0011308,68121.0,68100.0,0.32291623]
[1771640856876,0.0011308,68121.0,68112.0,0.02937]
[1771640856877,0.0158148,68121.0,68112.0,0.02937]
[1771640857077,0.0158148,68121.0,68110.0,0.17955288]
[1771640857078,0.0304988,68121.0,68114.0,0.014685]
[1771640857379,0.0158148,68121.0,68114.0,0.014685]
[1771640860782,0.0304988,68121.0,68114.0,0.014685]
[1771640861082,0.014684,68120.0,68114.0,0.014685]
[1771640862884,0.014684,68120.0,68113.0,0.014685]
[1771640863783,0.0158148,68121.0,68110.0,0.014686]
[1771640863784,0.014684,68119.0,68110.0,0.014686]
[1771640863984,0.014684,68118.0,68111.0,0.014686]
[1771640864484,0.014684,68118.0,68110.0,0.014686]
[1771640864678,0.014684,68118.0,68111.0,0.014686]
[1771640865284,0.33073594,68121.0,68100.0,0.33760423]
[1771640865594,0.014685,68114.0,68107.0,0.014687]
[1771640872989,0.014685,68113.0,68106.0,0.029374]
[1771640873288,0.014685,68113.0,68106.0,0.014687]
[1771640877895,0.15005226,68113.0,68090.0,0.26384721]
[1771640878087,0.014686,68108.0,68101.0,0.014688]
[1771640878286,0.15005226,68112.0,68097.0,0.014689]
[1771640878287,0.014687,68106.0,68099.0,0.014688]
[1771640878489,0.014688,68103.0,68095.0,0.014689]
[1771640878682,0.014688,68102.0,68094.0,0.00803228]
[1771640879087,0.014688,68102.0,68095.0,0.014689]
[1771640879392,0.014688,68101.0,68095.0,0.014689]
[1771640879981,0.014688,68100.0,68095.0,0.014689]
[1771640881289,0.014689,68098.0,68094.0,0.014689]
[1771640881692,0.014689,68097.0,68093.0,0.01469]
[1771640881900,0.014689,68098.0,68094.0,0.014689]
[1771640882690,0.014689,68097.0,68092.0,0.01469]
[1771640882989,0.01469,68094.0,68090.0,0.01469]
[1771640883999,0.01469,68093.0,68089.0,0.014691]
[1771640884295,0.01469,68093.0,68089.0,0.01469]
[1771640884495,0.01469,68092.0,68088.0,0.014691]
[1771640884696,0.01469,68091.0,68087.0,0.029382]
[1771640885197,0.01469,68092.0,68088.0,0.014691]
[1771640885398,0.01469,68092.0,68089.0,0.014691]
[1771640885699,0.01469,68091.0,68088.0,0.014691]
[1771640885997,0.01469,68092.0,68088.0,0.014691]
[1771640886496,0.01469,68092.0,68087.0,0.014691]
[1771640886696,0.01469,68092.0,68088.0,0.014691]
[1771640886697,0.01469,68091.0,68088.0,0.014691]
[1771640887893,0.01469,68091.0,68087.0,0.014691]
[1771640888587,0.01469,68090.0,68087.0,0.014691]
[1771640888787,0.01469,68091.0,68088.0,0.014691]
[1771640889000,0.01469,68091.0,68087.0,0.014691]
[1771640889299,0.01469,68090.0,68087.0,0.014691]
[1771640889489,0.01469,68091.0,68087.0,0.014691]
[1771640889800,0.01469,68091.0,68088.0,0.014691]
[1771640890193,0.01469,68092.0,68088.0,0.014691]
[1771640890594,0.02938,68092.0,68088.0,0.014691]
[1771640890895,0.01469,68092.0,68088.0,0.014691]
[1771640891085,0.02938,68092.0,68088.0,0.014691]
[1771640891289,0.01469,68092.0,68088.0,0.014691]
[1771640893198,0.01469,68092.0,68089.0,0.014691]
[1771640894101,0.01469,68092.0,68088.0,0.014691]
[1771640895300,0.01469,68091.0,68088.0,0.014691]
[1771640895599,0.01469,68092.0,68089.0,0.014691]
[1771640897099,0.01469,68093.0,68089.0,0.014691]
[1771640897402,0.014689,68096.0,68092.0,0.01469]
[1771640897999,0.014689,68095.0,68092.0,0.01469]
[1771640898401,0.014689,68095.0,68091.0,0.01469]
[1771640898901,0.014689,68096.0,68091.0,0.01469]
[1771640903798,0.014688,68102.0,68092.0,0.01469]
[1771640903994,0.014687,68104.0,68099.0,0.014688]
[1771640904198,0.014688,68103.0,68098.0,0.014689]
[1771640904398,0.014687,68104.0,68098.0,0.029378]
[1771640904703,0.014687,68104.0,68099.0,0.014688]
[1771640904897,0.014687,68104.0,68098.0,0.014689]
[1771640907304,0.014688,68103.0,68097.0,0.014689]
[1771640908497,0.014688,68103.0,68096.0,0.014689]